bitfinex-derivatives/quotes_BTCF0:USTF0_20250313
["timestamp","ask_amount","ask_price","bid_price","bid_amount"]
[1741862625028,0.07828054,83132.0,83131.0,0.18965282]
[1741862625518,0.07828054,83132.0,83131.0,0.20245847]
[1741862626921,0.19858074,83132.0,83131.0,0.20245847]
[1741862627317,0.07828054,83132.0,83131.0,0.20245847]
[1741862627518,0.19858074,83132.0,83131.0,0.20245847]
[1741862628214,0.19858074,83132.0,83131.0,0.2030553]
[1741862628629,0.19858074,83132.0,83131.0,0.20306589]
[1741862629332,0.07828054,83132.0,83131.0,0.20306589]
[1741862629523,0.07828054,83132.0,83131.0,0.19024965]
[1741862630230,0.07828054,83132.0,83131.0,0.43024965]
[1741862630422,0.03998054,83132.0,83131.0,0.43024965]
[1741862630733,0.03998054,83132.0,83131.0,0.44307267]
[1741862631522,0.00018054,83132.0,83131.0,0.44307267]
[1741862632139,0.0408,83140.0,83139.0,0.1202901]
[1741862632429,0.0408,83140.0,83139.0,0.16716977]
[1741862632932,0.2015886,83140.0,83139.0,0.16716977]
[1741862633234,0.2015886,83140.0,83139.0,0.18063283]
[1741862633530,0.2015886,83140.0,83139.0,0.14685178]
[1741862634037,0.0813,83140.0,83139.0,0.14685178]
[1741862634224,0.0813,83140.0,83139.0,0.13338872]
[1741862634531,0.2015886,83140.0,83139.0,0.13338872]
[1741862634936,0.0813,83140.0,83139.0,0.13338872]
[1741862635335,0.0813,83140.0,83139.0,0.14744943]
[1741862635529,0.0813,83140.0,83139.0,0.16024982]
[1741862635730,0.0813,83140.0,83139.0,0.18112163]
[1741862636237,0.2015886,83140.0,83139.0,0.18112163]
[1741862636438,0.2015886,83140.0,83139.0,0.18107974]
[1741862636630,0.2015886,83140.0,83139.0,0.16024982]
[1741862637235,0.2015886,83140.0,83139.0,0.18107997]
[1741862637434,0.2015886,83140.0,83139.0,0.16024982]
[1741862637634,0.2015886,83140.0,83139.0,0.14744943]
[1741862638036,0.2015886,83140.0,83139.0,0.02715933]
[1741862638335,0.1203103,83125.0,83124.0,0.240612]
[1741862638531,0.1203103,83125.0,83124.0,0.3609159]
[1741862639437,0.1966103,83125.0,83124.0,0.3609159]
[1741862640632,0.1966103,83125.0,83124.0,0.1203089]
[1741862640933,0.1203161,83122.0,83121.0,0.1203147]
[1741862641327,0.2003161,83122.0,83121.0,0.1203147]
[1741862641928,0.08,83122.0,83119.0,0.2162793]
[1741862642128,0.1203176,83120.0,83119.0,0.3365969]
[1741862642338,0.1203176,83120.0,83119.0,0.1203176]
[1741862642638,0.2003176,83120.0,83119.0,0.1203176]
[1741862643034,0.08,83120.0,83119.0,0.1203176]
[1741862643432,0.08,83120.0,83119.0,0.13329462]
[1741862643632,0.08,83120.0,83119.0,0.17419462]
[1741862644236,0.08,83120.0,83119.0,0.17519462]
[1741862645037,0.08,83120.0,83119.0,0.17419462]
[1741862645239,0.08,83120.0,83119.0,0.17519462]
[1741862646644,0.08,83120.0,83119.0,0.19508991]
[1741862647143,0.01093113,83150.0,83119.0,0.40508991]
[1741862647336,0.15204,83140.0,83124.0,0.0601552]
[1741862647538,0.04,83142.0,83129.0,0.1203045]
[1741862647839,0.0402,83139.0,83129.0,0.38019979]
[1741862648038,0.1604902,83139.0,83129.0,0.38019979]
[1741862648228,0.05354186,83139.0,83129.0,0.38019979]
[1741862648429,0.05354186,83139.0,83124.0,0.0601552]
[1741862648430,0.12048353,83130.0,83119.0,0.0415]
[1741862648634,0.1203176,83120.0,83119.0,0.1213189]
[1741862649129,0.0409,83121.0,83120.0,0.1203176]
[1741862649333,0.1612161,83121.0,83120.0,0.1203176]
[1741862649741,0.17419916,83121.0,83120.0,0.1203176]
[1741862650141,0.17419916,83121.0,83120.0,0.1324775]
[1741862651043,0.17419916,83121.0,83120.0,0.14591077]
[1741862651935,0.17419916,83121.0,83120.0,0.14691077]
[1741862652441,0.17419916,83121.0,83120.0,0.18561077]
[1741862656148,0.17419916,83121.0,83120.0,0.06529317]
[1741862656341,0.17419916,83121.0,83120.0,0.14691077]
[1741862656744,0.17419916,83121.0,83120.0,0.18701077]
[1741862657344,0.17419916,83121.0,83120.0,0.14691077]
[1741862658043,0.17419916,83121.0,83120.0,0.18741077]
[1741862658241,0.17419916,83121.0,83120.0,0.18728271]
[1741862659147,0.17419916,83121.0,83120.0,0.14678271]
[1741862659552,0.17419916,83121.0,83120.0,0.13475087]
[1741862660346,0.17419916,83121.0,83120.0,0.1213176]
[1741862660845,0.17419916,83121.0,83120.0,0.1618176]
[1741862661057,0.17419916,83121.0,83120.0,0.001]
[1741862661646,0.0601651,83112.0,83101.0,0.120345]
[1741862661852,0.1203378,83106.0,83101.0,0.0416]
[1741862662149,0.1203378,83106.0,83103.0,0.1203409]
[1741862662349,0.1203378,83106.0,83097.0,0.0601751]
[1741862662552,0.1203378,83106.0,83095.0,0.0416]
[1741862662751,0.1203378,83106.0,83097.0,0.1203507]
[1741862663051,0.2008378,83106.0,83103.0,0.1203411]
[1741862663250,0.2008378,83106.0,83100.0,0.34814484]
[1741862663452,0.1203393,83105.0,83104.0,0.2159788]
[1741862663953,0.1918393,83105.0,83104.0,0.2159788]
[1741862664545,0.1918393,83105.0,83104.0,0.2209788]
[1741862666043,0.1918393,83105.0,83104.0,0.2249788]
[1741862667450,0.1918393,83105.0,83104.0,0.1293407]
[1741862667756,0.1918393,83105.0,83104.0,0.009]
[1741862670751,0.20083608,83105.0,83104.0,0.009]
[1741862672961,0.0805,83105.0,83104.0,0.1293407]
[1741862673145,0.0401,83111.0,83108.0,0.0601667]
[1741862673146,0.00892996,83110.0,83108.0,0.0601667]
[1741862673464,0.00892996,83110.0,83104.0,0.009]
[1741862673465,0.1588335,83110.0,83109.0,0.2018335]
[1741862673652,0.1997335,83110.0,83109.0,0.2018335]
[1741862674360,0.2419335,83110.0,83109.0,0.2018335]
[1741862674655,0.2419335,83110.0,83109.0,0.2048335]
[1741862674850,0.00018043,83113.0,83112.0,0.1203291]
[1741862675051,0.12050813,83113.0,83112.0,0.1203291]
[1741862675460,0.20120813,83113.0,83112.0,0.1203291]
[1741862675755,0.120332,83110.0,83109.0,0.0845]
[1741862675958,0.120332,83110.0,83109.0,0.174867]
[1741862676344,0.120332,83110.0,83109.0,0.1629335]
[1741862677151,0.118332,83110.0,83109.0,0.1599335]
[1741862677352,0.118332,83110.0,83109.0,0.1629335]
[1741862677753,0.118332,83110.0,83109.0,0.17505081]
[1741862677952,0.118332,83110.0,83109.0,0.17805081]
[1741862678359,0.16270993,83113.0,83112.0,0.1203291]
[1741862678555,0.00018043,83113.0,83112.0,0.13244641]
[1741862678763,0.12050813,83113.0,83112.0,0.17264641]
[1741862678965,0.12050813,83113.0,83112.0,0.18611918]
[1741862679356,0.12050813,83113.0,83112.0,0.06579008]
[1741862679662,0.16270813,83113.0,83112.0,0.17400187]
[1741862679857,0.16270813,83113.0,83112.0,0.1605291]
[1741862680463,0.16270813,83113.0,83112.0,0.1635291]
[1741862680759,0.16270813,83113.0,83112.0,0.0432]
[1741862680973,0.20390813,83113.0,83112.0,0.0432]
[1741862681166,0.20390813,83113.0,83112.0,0.004]
[1741862682366,0.1203393,83105.0,83104.0,0.1587405]
[1741862682568,0.1203393,83105.0,83104.0,0.1203405]
[1741862683061,0.1203451,83101.0,83100.0,0.2406896]
[1741862683364,0.1203451,83101.0,83100.0,0.1589439]
[1741862683566,0.1153451,83101.0,83100.0,0.1589439]
[1741862683963,0.1921451,83101.0,83100.0,0.1589439]
[1741862684569,0.1921451,83101.0,83100.0,0.1649439]
[1741862684866,0.1529451,83101.0,83100.0,0.1649439]
[1741862685064,0.1529451,83101.0,83100.0,0.1699439]
[1741862687058,0.1529451,83101.0,83100.0,0.2108439]
[1741862687463,0.1113451,83101.0,83100.0,0.2108439]
[1741862688264,0.0601717,83103.0,83102.0,0.1203436]
[1741862688572,0.2719407,83105.0,83104.0,0.1203407]
[1741862689369,0.2719407,83105.0,83104.0,0.2016407]
[1741862690562,0.2719407,83105.0,83104.0,0.2046407]
[1741862691160,0.3506407,83105.0,83104.0,0.2046407]
[1741862691567,0.3506407,83105.0,83104.0,0.2066407]
[1741862695271,0.3506407,83105.0,83104.0,0.2046407]
[1741862695770,0.1990407,83105.0,83104.0,0.2046407]
[1741862695978,0.3505607,83105.0,83104.0,0.2046407]
[1741862697071,0.3505607,83105.0,83104.0,0.2016407]
[1741862697272,0.3515607,83105.0,83104.0,0.2016407]
[1741862701973,0.3515607,83105.0,83104.0,0.0813]
[1741862702363,0.3515607,83105.0,83104.0,0.2016407]
[1741862702769,0.3515607,83105.0,83104.0,0.0813]
[1741862704282,0.3515607,83105.0,83104.0,0.2016407]
[1741862705371,0.3515607,83105.0,83104.0,0.0813]
[1741862709573,0.3515607,83105.0,83104.0,0.2016407]
[1741862709880,0.3515607,83105.0,83104.0,0.0813]
[1741862710881,0.3515607,83105.0,83104.0,0.0391]
[1741862712183,0.3515607,83105.0,83104.0,0.1594407]
[1741862712692,0.3515607,83105.0,83104.0,0.2006407]
[1741862713691,0.19292,83105.0,83104.0,0.2006407]
[1741862713996,0.3132593,83105.0,83104.0,0.2006407]
[1741862715196,0.3546593,83105.0,83104.0,0.2006407]
[1741862716391,0.3546593,83105.0,83104.0,0.0803]
[1741862717194,0.3546593,83105.0,83104.0,0.2006407]
[1741862717390,0.3546593,83105.0,83104.0,0.0803]
[1741862718993,0.3546593,83105.0,83104.0,0.0391]
[1741862719190,0.3546593,83105.0,83097.0,0.21615923]
[1741862719191,0.1203494,83098.0,83097.0,0.21615923]
[1741862719793,0.13298622,83098.0,83097.0,0.21615923]
[1741862720299,0.17388622,83098.0,83097.0,0.21615923]
[1741862720489,0.21298622,83098.0,83097.0,0.21615923]
[1741862720993,0.21298622,83098.0,83097.0,0.21715923]
[1741862721993,0.21498622,83098.0,83097.0,0.21715923]
[1741862722293,0.1203682,83085.0,83084.0,0.0008]
[1741862722496,0.1203784,83078.0,83077.0,0.0392]
[1741862722887,0.1203798,83077.0,83076.0,0.0413]
[1741862723088,0.2014798,83077.0,83076.0,0.0413]
[1741862724196,0.1203813,83076.0,83075.0,0.2159788]
[1741862724587,0.2014813,83076.0,83075.0,0.2159788]
[1741862725183,0.1203871,83072.0,83068.0,0.00018054]
[1741862725384,0.2715871,83072.0,83068.0,0.00018054]
[1741862726099,0.3099871,83072.0,83068.0,0.00018054]
[1741862726293,0.3646831,83072.0,83068.0,0.00018054]
[1741862726497,0.1203914,83069.0,83068.0,0.00018054]
[1741862728801,0.1213914,83069.0,83068.0,0.00018054]
[1741862729292,0.1223914,83069.0,83068.0,0.00018054]
[1741862733495,0.1223914,83069.0,83065.0,0.0385]
[1741862733695,0.26139,83068.0,83067.0,0.0406]
[1741862735002,0.26239,83068.0,83067.0,0.0406]
[1741862735698,0.1204045,83060.0,83059.0,0.01395783]
[1741862735895,0.2714845,83060.0,83059.0,0.01395783]
[1741862738093,0.2714845,83060.0,83059.0,0.01495783]
[1741862738901,0.2714845,83060.0,83059.0,0.05585783]
[1741862739100,0.2714845,83060.0,83059.0,0.17626373]
[1741862739304,0.2714845,83060.0,83059.0,0.05585783]
[1741862740205,0.3095845,83060.0,83059.0,0.05585783]
[1741862740407,0.3095845,83060.0,83059.0,0.17626373]
[1741862740610,0.3095845,83060.0,83059.0,0.05585783]
[1741862742300,0.3498845,83060.0,83059.0,0.05585783]
[1741862742906,0.3498845,83060.0,83059.0,0.01495783]
[1741862743507,0.3095845,83060.0,83059.0,0.01495783]
[1741862746814,0.18918,83060.0,83057.0,0.01384105]
[1741862747020,0.1204146,83053.0,83052.0,0.0379]
[1741862747912,0.1204146,83053.0,83052.0,0.03939586]
[1741862748108,0.1806203,83055.0,83053.0,0.0602073]
[1741862748314,0.1204146,83053.0,83052.0,0.04039586]
[1741862749015,0.1204146,83053.0,83052.0,0.16081096]
[1741862749310,0.1194146,83053.0,83052.0,0.19811196]
[1741862749508,0.1614146,83053.0,83052.0,0.19811196]
[1741862749914,0.1614146,83053.0,83052.0,0.07869586]
[1741862750813,0.1614146,83053.0,83052.0,0.19911196]
[1741862751114,0.1744793,83053.0,83052.0,0.19911196]
[1741862752016,0.1324793,83053.0,83052.0,0.19911196]
[1741862752718,0.10661526,83055.0,83052.0,0.07869586]
[1741862752908,0.10661526,83055.0,83054.0,0.1204132]
[1741862753109,0.37794696,83055.0,83054.0,0.1204132]
[1741862753618,0.10661526,83055.0,83054.0,0.2001132]
[1741862754014,0.10661526,83055.0,83054.0,0.20160906]
[1741862754218,0.22702696,83055.0,83054.0,0.20160906]
[1741862754821,0.10661526,83055.0,83054.0,0.20160906]
[1741862755019,0.22702696,83055.0,83054.0,0.20160906]
[1741862755521,0.10661526,83055.0,83054.0,0.20160906]
[1741862756415,0.22702696,83055.0,83054.0,0.20160906]
[1741862756816,0.1204117,83055.0,83054.0,0.20160906]
[1741862757517,0.1603117,83055.0,83054.0,0.20160906]
[1741862758519,0.10661526,83057.0,83056.0,0.1204103]
[1741862758908,0.10661526,83057.0,83056.0,0.2393103]
[1741862759114,0.10661526,83057.0,83056.0,0.24080616]
[1741862759316,0.10661526,83057.0,83056.0,0.25080616]
[1741862759717,0.22902406,83057.0,83056.0,0.25080616]
[1741862760514,0.26522893,83057.0,83056.0,0.25080616]
[1741862761514,0.26622893,83057.0,83056.0,0.25080616]
[1741862762515,0.14582013,83057.0,83056.0,0.25080616]
[1741862763025,0.26622893,83057.0,83056.0,0.25080616]
[1741862763228,0.14582013,83057.0,83056.0,0.25080616]
[1741862764126,0.1234088,83057.0,83056.0,0.20250616]
[1741862765028,0.2043088,83057.0,83056.0,0.20250616]
[1741862768435,0.2043088,83057.0,83056.0,0.16110616]
[1741862768617,0.2043088,83057.0,83056.0,0.00149586]
[1741862768927,0.2043088,83057.0,83051.0,0.01452494]
[1741862768928,0.1204161,83052.0,83051.0,0.01452494]
[1741862769124,0.1204161,83052.0,83051.0,0.13494244]
[1741862769527,0.1204161,83052.0,83051.0,0.01452494]
[1741862769826,0.2010161,83052.0,83048.0,0.01440471]
[1741862770026,0.1204204,83049.0,83048.0,0.01440471]
[1741862770231,0.1204204,83049.0,83046.0,0.01405502]
[1741862770232,0.1204233,83047.0,83046.0,0.01405502]
[1741862770918,0.2013233,83047.0,83046.0,0.01405502]
[1741862772330,0.1204277,83044.0,83040.0,0.01436761]
[1741862772639,0.120432,83041.0,83040.0,0.01436761]
[1741862773020,0.1204349,83039.0,83035.0,0.0152585]
[1741862773829,0.2013349,83039.0,83035.0,0.0152585]
[1741862774022,0.2013349,83039.0,83038.0,0.1347616]
[1741862774023,0.0809,83039.0,83038.0,0.1347616]
[1741862774223,0.09383666,83039.0,83038.0,0.1347616]
[1741862774421,0.36499156,83039.0,83038.0,0.1347616]
[1741862777321,0.36499156,83039.0,83038.0,0.0143252]
[1741862779430,0.36499156,83039.0,83038.0,0.1347616]
[1741862781530,0.36499156,83039.0,83038.0,0.0143252]
[1741862782636,0.1204393,83036.0,83035.0,0.0152585]
[1741862783225,0.1204436,83033.0,83032.0,0.01508959]
[1741862784131,0.2018436,83033.0,83032.0,0.01508959]
[1741862785929,0.2018436,83033.0,83032.0,0.13553469]
[1741862786129,0.2018436,83033.0,83032.0,0.17783469]
[1741862786421,0.2018436,83033.0,83032.0,0.21653469]
[1741862786634,0.3524436,83033.0,83032.0,0.21653469]
[1741862788726,0.232,83033.0,83032.0,0.21653469]
[1741862788926,0.23196,83033.0,83032.0,0.21653469]
[1741862789231,0.3524036,83033.0,83032.0,0.21653469]
[1741862789621,0.3127036,83033.0,83032.0,0.21653469]
[1741862789931,0.22729643,83034.0,83033.0,0.1204436]
[1741862790235,0.37785643,83034.0,83033.0,0.2032436]
[1741862790535,0.2710022,83034.0,83033.0,0.0828]
[1741862790730,0.2710022,83034.0,83033.0,0.2032436]
[1741862791033,0.1204436,83033.0,83032.0,0.01508959]
[1741862791241,0.2421436,83033.0,83032.0,0.01508959]
[1741862791735,0.2421436,83033.0,83032.0,0.13553469]
[1741862791937,0.2421436,83033.0,83032.0,0.21833469]
[1741862792335,0.08,83033.0,83032.0,0.21833469]
[1741862792636,0.1598436,83033.0,83032.0,0.21833469]
[1741862792838,0.1989436,83033.0,83032.0,0.21833469]
[1741862794436,0.3494636,83033.0,83032.0,0.21833469]
[1741862796037,0.3494636,83033.0,83032.0,0.09788959]
[1741862796539,0.36061025,83033.0,83032.0,0.01508959]
[1741862797036,0.36061105,83033.0,83032.0,0.01508959]
[1741862797224,0.36061105,83033.0,83032.0,0.09388959]
[1741862798836,0.36361105,83033.0,83032.0,0.09388959]
[1741862799138,0.36661105,83033.0,83032.0,0.09388959]
[1741862799334,0.36661105,83033.0,83032.0,0.01508959]
[1741862800229,0.36661105,83033.0,83032.0,0.05518959]
[1741862800631,0.36661105,83033.0,83032.0,0.21393469]
[1741862800938,0.32751105,83033.0,83032.0,0.21393469]
[1741862801540,0.3163636,83033.0,83032.0,0.21393469]
[1741862801931,0.006,83033.0,83032.0,0.21393469]
[1741862802132,0.1264436,83033.0,83032.0,0.21393469]
[1741862802334,0.1678436,83033.0,83032.0,0.21393469]
[1741862802638,0.22640733,83033.0,83032.0,0.21393469]
[1741862803335,0.26720733,83033.0,83032.0,0.21393469]
[1741862803843,0.26720733,83033.0,83032.0,0.09348959]
[1741862804433,0.27834685,83033.0,83032.0,0.09348959]
[1741862807044,0.27834685,83033.0,83032.0,0.21393469]
[1741862808445,0.27839992,83033.0,83032.0,0.21393469]
[1741862809147,0.27849017,83033.0,83032.0,0.21393469]
[1741862809635,0.2782382,83033.0,83032.0,0.21393469]
[1741862809834,0.26720733,83033.0,83032.0,0.21393469]
[1741862810047,0.44593029,83033.0,83032.0,0.21393469]
[1741862810237,0.45696154,83033.0,83032.0,0.21393469]
[1741862810437,0.44593029,83033.0,83032.0,0.21393469]
[1741862810836,0.45696239,83033.0,83032.0,0.21393469]
[1741862813450,0.27823943,83033.0,83032.0,0.21393469]
[1741862813652,0.27823943,83033.0,83032.0,0.09348959]
[1741862813951,0.27823943,83033.0,83032.0,0.05338959]
[1741862814150,0.27842475,83033.0,83032.0,0.17383469]
[1741862814348,0.27842475,83033.0,83032.0,0.09218959]
[1741862815352,0.27842475,83033.0,83032.0,0.21263469]
[1741862815548,0.27842475,83033.0,83032.0,0.09218959]
[1741862816146,0.42880058,83033.0,83032.0,0.09218959]
[1741862816342,0.42880058,83033.0,83032.0,0.05338959]
[1741862816538,0.42880058,83033.0,83032.0,0.01508959]
[1741862818046,0.42877406,83033.0,83032.0,0.01508959]
[1741862818654,0.42877406,83033.0,83032.0,0.05578959]
[1741862819353,0.44728808,83033.0,83032.0,0.05578959]
[1741862821252,0.4477513,83033.0,83032.0,0.05578959]
[1741862821447,0.4477513,83033.0,83032.0,0.01508959]
[1741862821648,0.1204509,83028.0,83027.0,0.01548883]
[1741862821853,0.15071487,83028.0,83027.0,0.01548883]
[1741862822056,0.03026397,83028.0,83016.0,0.01614956]
[1741862822252,0.1204668,83017.0,83016.0,0.01614956]
[1741862822451,0.28234679,83017.0,83016.0,0.01614956]
[1741862822658,0.28230679,83017.0,83016.0,0.13661786]
[1741862822855,0.28230679,83017.0,83016.0,0.21621786]
[1741862823055,0.01163999,83017.0,83016.0,0.21621786]
[1741862823257,0.01163999,83017.0,83016.0,0.26641786]
[1741862823860,0.13210679,83017.0,83016.0,0.26641786]
[1741862824453,0.01163999,83017.0,83016.0,0.26641786]
[1741862825157,0.1502,83022.0,83016.0,0.26641786]
[1741862825158,0.0602148,83043.0,83029.0,0.1204494]
[1741862825453,0.1204396,83036.0,83029.0,0.1204494]
[1741862825660,0.21441085,83030.0,83029.0,0.1204494]
[1741862825858,0.21441085,83030.0,83029.0,0.2094494]
[1741862826053,0.00180717,83044.0,83043.0,0.1204291]
[1741862826359,0.00180717,83044.0,83043.0,0.4004291]
[1741862826954,0.00180717,83044.0,83043.0,0.4794291]
[1741862827355,0.00018065,83052.0,83043.0,0.6294291]
[1741862827554,0.00018065,83052.0,83051.0,0.1204175]
[1741862827760,0.12059675,83052.0,83051.0,0.1204175]
[1741862828462,0.12059675,83052.0,83051.0,0.1994175]
[1741862828761,0.00018065,83052.0,83051.0,0.1994175]
[1741862829056,0.12059675,83052.0,83051.0,0.1994175]
[1741862829651,0.00018065,83052.0,83051.0,0.1994175]
[1741862830058,0.10710713,83059.0,83058.0,0.1204074]
[1741862830960,0.22751303,83059.0,83058.0,0.1987074]
[1741862831353,0.23151303,83059.0,83058.0,0.1987074]
[1741862832655,0.1284059,83059.0,83058.0,0.1987074]
[1741862833560,0.1284059,83059.0,83058.0,0.0783]
[1741862833762,0.1669059,83059.0,83058.0,0.1987074]
[1741862834862,0.1204117,83055.0,83054.0,0.1806186]
[1741862835164,0.1204146,83053.0,83052.0,0.1982144]
[1741862835864,0.2000146,83053.0,83052.0,0.0402]
[1741862836064,0.1204364,83038.0,83037.0,0.46862194]
[1741862836256,0.1204364,83038.0,83037.0,0.53883974]
[1741862836457,0.1204364,83038.0,83037.0,0.41840734]
[1741862836762,0.1204364,83038.0,83037.0,0.28797174]
[1741862837068,0.0602153,83042.0,83037.0,0.28797174]
[1741862837256,0.15004,83045.0,83038.0,0.1204364]
[1741862837257,0.0399,83039.0,83038.0,0.1204364]
[1741862837564,0.0399,83039.0,83038.0,0.1606364]
[1741862837764,0.13179456,83039.0,83038.0,0.1606364]
[1741862837960,0.14330348,83039.0,83038.0,0.1606364]
[1741862838259,0.1204393,83036.0,83035.0,0.12061845]
[1741862838453,0.13194822,83036.0,83035.0,0.00018065]
[1741862839056,0.13194822,83036.0,83035.0,0.12062135]
[1741862839262,0.20724822,83036.0,83035.0,0.12062135]
[1741862839461,0.21860788,83036.0,83035.0,0.12062135]
[1741862839774,0.09916858,83036.0,83035.0,0.12062135]
[1741862839954,0.20809896,83036.0,83035.0,0.20182135]
[1741862840161,0.20909896,83036.0,83035.0,0.20182135]
[1741862840464,0.21009896,83036.0,83035.0,0.20182135]
[1741862840866,0.20909896,83036.0,83035.0,0.20182135]
[1741862841160,0.21009896,83036.0,83035.0,0.20182135]
[1741862841867,0.21009896,83036.0,83035.0,0.12062135]
[1741862842362,0.22933533,83036.0,83035.0,0.00018065]
[1741862842561,0.24829438,83036.0,83035.0,0.00018065]
[1741862843064,0.24729438,83036.0,83035.0,0.00018065]
[1741862843463,0.24829438,83036.0,83035.0,0.00018065]
[1741862843657,0.24729438,83036.0,83035.0,0.00018065]
[1741862843855,0.24929438,83036.0,83035.0,0.00018065]
[1741862844055,0.24829438,83036.0,83035.0,0.00018065]
[1741862844270,0.1204596,83022.0,83021.0,0.1204599]
[1741862845356,0.15077831,83022.0,83021.0,0.1204599]
[1741862845557,0.03031871,83022.0,83021.0,0.1204599]
[1741862845766,0.03031871,83022.0,83021.0,0.1696599]
[1741862846160,0.01135966,83024.0,83023.0,0.1204581]
[1741862846356,0.01135966,83024.0,83023.0,0.1304581]
[1741862846870,0.0602256,83028.0,83027.0,0.1204509]
[1741862847071,0.0602256,83028.0,83027.0,0.2011509]
[1741862847273,0.1414256,83028.0,83027.0,0.2011509]
[1741862847467,0.15278526,83028.0,83027.0,0.2011509]
[1741862848063,0.15478526,83028.0,83027.0,0.2011509]
[1741862848773,0.09455966,83028.0,83027.0,0.2011509]
[1741862848975,0.01435966,83028.0,83027.0,0.2011509]
[1741862849471,0.01435966,83028.0,83027.0,0.2111509]
[1741862849871,0.003,83028.0,83027.0,0.2111509]
[1741862850669,1e-07,83028.0,83027.0,0.3611509]
[1741862850876,0.10710713,83041.0,83040.0,0.1204335]
[1741862851070,0.10710713,83041.0,83040.0,0.3904335]
[1741862851773,0.10710713,83041.0,83040.0,0.4716335]
[1741862852170,0.10710713,83049.0,83040.0,0.4716335]
[1741862852372,0.10710713,83049.0,83045.0,0.1204262]
[1741862852668,0.12060545,83046.0,83045.0,0.3504262]
[1741862852869,0.12060545,83046.0,83045.0,0.1204262]
[1741862853378,0.14387304,83046.0,83045.0,0.1204262]
[1741862853770,0.18377304,83046.0,83045.0,0.1204262]
[1741862853966,0.1204277,83044.0,83043.0,0.0602145]
[1741862854278,0.13222443,83044.0,83043.0,0.0602145]
[1741862854770,0.120432,83041.0,83040.0,0.162133]
[1741862854973,0.13222873,83041.0,83040.0,0.162133]
[1741862855881,0.02326759,83041.0,83040.0,0.162133]
[1741862856673,0.14569959,83041.0,83040.0,0.162133]
[1741862856880,0.02526759,83041.0,83040.0,0.162133]
[1741862857284,0.14569959,83041.0,83040.0,0.162133]
[1741862857473,0.22249959,83041.0,83040.0,0.162133]
[1741862858177,0.22349959,83041.0,83040.0,0.162133]
[1741862858771,0.22449959,83041.0,83040.0,0.162133]
[1741862859273,0.22249959,83041.0,83040.0,0.162133]
[1741862859469,0.22449959,83041.0,83040.0,0.162133]
[1741862859673,0.22249959,83041.0,83040.0,0.162133]
[1741862860582,0.22549959,83041.0,83040.0,0.162133]
[1741862862475,0.22349959,83041.0,83040.0,0.162133]
[1741862862675,0.22549959,83041.0,83040.0,0.162133]
[1741862863077,0.22349959,83041.0,83040.0,0.162133]
[1741862863281,0.22549959,83041.0,83040.0,0.162133]
[1741862864282,0.06586759,83041.0,83040.0,0.162133]
[1741862864483,0.02826759,83041.0,83040.0,0.272133]
[1741862864681,0.005,83041.0,83040.0,0.272133]
[1741862865177,0.01633291,83041.0,83040.0,0.272133]
[1741862866987,0.005,83041.0,83040.0,0.272133]
[1741862868588,0.01644778,83041.0,83040.0,0.272133]
[1741862868794,0.005,83041.0,83040.0,0.272133]
[1741862869186,0.003,83041.0,83040.0,0.272133]
[1741862869384,0.004,83041.0,83040.0,0.272133]
[1741862869585,5e-08,83046.0,83045.0,0.1204262]
[1741862869791,5e-08,83046.0,83045.0,0.4004262]
[1741862870386,5e-08,83046.0,83045.0,0.4828262]
[1741862871189,0.00100005,83046.0,83045.0,0.4828262]
[1741862871891,0.00200005,83046.0,83045.0,0.4828262]
[1741862874493,5e-08,83046.0,83045.0,0.4828262]
[1741862874700,0.00192688,83049.0,83048.0,0.1204219]
[1741862874906,0.00192688,83049.0,83048.0,0.4004219]
[1741862876014,0.00292688,83049.0,83048.0,0.4004219]
[1741862876502,0.00392688,83049.0,83048.0,0.4004219]
[1741862877213,0.00392688,83049.0,83048.0,0.41318002]
[1741862877906,0.002,83049.0,83048.0,0.6288605]
[1741862878714,0.002,83049.0,83048.0,1.0482605]
[1741862881510,0.0406,83052.0,83048.0,0.9278386]
[1741862881701,0.0406,83052.0,83051.0,0.1204175]
[1741862881898,0.00883796,83084.0,83068.0,0.1203929]
[1741862882103,0.01138351,83069.0,83068.0,0.3703929]
[1741862882306,5e-08,83069.0,83068.0,0.3703929]
[1741862882805,5e-08,83069.0,83068.0,0.4104929]
[1741862883001,0.0401,83081.0,83071.0,0.1203885]
[1741862883207,0.39351506,83101.0,83072.0,0.18966]
[1741862883506,0.3696726,83092.0,83091.0,0.1203596]
[1741862883704,0.38097293,83092.0,83091.0,0.1203596]
[1741862884606,0.50337293,83092.0,83091.0,0.1203596]
[1741862884804,0.50637293,83092.0,83091.0,0.1203596]
[1741862885205,0.4950726,83092.0,83091.0,0.1203596]
[1741862885814,0.2457584,83092.0,83091.0,0.1203596]
[1741862886407,0.2477584,83092.0,83091.0,0.1203596]
[1741862886613,0.25890524,83092.0,83091.0,0.1203596]
[1741862887215,0.25790524,83092.0,83091.0,0.1203596]
[1741862887402,0.25690524,83092.0,83091.0,0.1203596]
[1741862888017,0.25790524,83092.0,83091.0,0.1203596]
[1741862888208,0.13754684,83092.0,83091.0,0.1203596]
[1741862889019,0.1244,83092.0,83091.0,0.1203596]
[1741862889213,0.1264,83092.0,83091.0,0.1606596]
[1741862889713,0.00180585,83109.0,83091.0,0.3303]
[1741862889915,0.00180585,83109.0,83099.0,0.120348]
[1741862889916,0.04,83105.0,83099.0,0.120348]
[1741862890114,0.04,83105.0,83099.0,0.360348]
[1741862890418,0.0405,83104.0,83099.0,0.360348]
[1741862890607,0.1203455,83101.0,83099.0,0.360348]
[1741862890807,0.04068052,83100.0,83099.0,0.360348]
[1741862891310,0.04068052,83100.0,83099.0,0.362348]
[1741862892015,0.04068052,83100.0,83099.0,0.361348]
[1741862892816,0.04068052,83100.0,83099.0,0.360348]
[1741862893214,0.00018052,83100.0,83099.0,0.360348]
[1741862893407,0.0798,83104.0,83103.0,0.1203422]
[1741862893717,0.0798,83104.0,83103.0,0.3903422]
[1741862894316,0.0798,83104.0,83103.0,0.4294422]
[1741862895713,0.2001407,83104.0,83103.0,0.4294422]
[1741862896309,0.2001407,83104.0,83103.0,0.3903422]
[1741862897112,0.2011407,83104.0,83103.0,0.3903422]
[1741862897613,0.2021407,83104.0,83103.0,0.3903422]
[1741862897813,0.2011407,83104.0,83103.0,0.3903422]
[1741862898014,0.2021407,83104.0,83103.0,0.3903422]
[1741862898824,0.0818,83104.0,83103.0,0.3903422]
[1741862899020,0.0818,83104.0,83103.0,0.4296422]
[1741862899323,0.0818,83104.0,83103.0,0.4683422]
[1741862899717,0.2021407,83104.0,83103.0,0.3903422]
[1741862899910,0.2021407,83104.0,83103.0,0.1203422]
[1741862900125,0.2021407,83104.0,83101.0,0.0601718]
[1741862900126,0.0818,83104.0,83098.0,0.0393]
[1741862900420,0.1805212,83101.0,83100.0,0.1203451]
[1741862900723,0.1203538,83095.0,83089.0,0.0601807]
[1741862900920,0.060175,83098.0,83081.0,0.0387]
[1741862901117,0.060175,83098.0,83080.0,0.28797174]